Department Family,Entity,Date,Expense Type,Expense Area,Supplier,Transaction Number,Amount
DOH,London Ambulance Service NHS Trust,24/05/2017,Dh Managed Service,Airwave Support,Department Of Health,3043,580943.32
DOH,London Ambulance Service NHS Trust,03/05/2017,Private Ambulance Hire,Ops Central - Private Amb,Srcl Ltd,327239,45685.72
DOH,London Ambulance Service NHS Trust,10/05/2017,Private Ambulance Hire,Ops Central - Private Amb,Medical Services Ltd,327241,56003.64
DOH,London Ambulance Service NHS Trust,03/05/2017,Computer Software,Esr,Software Europe Ltd,327260,31509.6
DOH,London Ambulance Service NHS Trust,03/05/2017,Vehicles,Capital,S & B Commercials Plc,328361,36855.6
DOH,London Ambulance Service NHS Trust,03/05/2017,Vehicles,Capital,S & B Commercials Plc,328362,36855.6
DOH,London Ambulance Service NHS Trust,03/05/2017,Buildings,Capital,Mas Systems Ltd,328428,29328.38
DOH,London Ambulance Service NHS Trust,03/05/2017,Computer Software,Management Accounts,Brovanture Limited,328500,136080
DOH,London Ambulance Service NHS Trust,03/05/2017,Data Network Rental,Networks,Bt Global Services,328599,32757.76
DOH,London Ambulance Service NHS Trust,01/05/2017,Computer Hardware,Capital,Bt Plc,328696,39649.18
DOH,London Ambulance Service NHS Trust,01/05/2017,Data Comms Maintenance,Networks,Bt Plc,328697,189113.43
DOH,London Ambulance Service NHS Trust,03/05/2017,Cleaning Of Vehicles Makeready,Veh Prep Service Expansion,Interserve Hospital Services,328752,131119.27
DOH,London Ambulance Service NHS Trust,03/05/2017,Cleaning Of Vehicles Makeready,Veh Prep Service Expansion,Interserve Hospital Services,328754,143528.36
DOH,London Ambulance Service NHS Trust,03/05/2017,Cleaning Of Vehicles Makeready,Corporate Logistics,Interserve Hospital Services,328755,258074.86
DOH,London Ambulance Service NHS Trust,03/05/2017,Capitalised Software,Capital,Northrop Grumman Information Technology,328772,96269.25
DOH,London Ambulance Service NHS Trust,03/05/2017,Vehicles,Capital,S & B Commercials Plc,328805,36855.6
DOH,London Ambulance Service NHS Trust,03/05/2017,Computer Hardware,Capital,Dell Computer Corporation Ltd,328811,33973.96
DOH,London Ambulance Service NHS Trust,03/05/2017,Buildings,Capital,Abbey Wood Grange,328858,26040
DOH,London Ambulance Service NHS Trust,03/05/2017,Private Ambulance Hire,Ops Central - Private Amb,Medical Services Ltd,328878,59338.26
DOH,London Ambulance Service NHS Trust,03/05/2017,Vehicles,Capital,S & B Commercials Plc,328899,36855.6
DOH,London Ambulance Service NHS Trust,03/05/2017,Vehicles,Capital,S & B Commercials Plc,328900,36855.6
DOH,London Ambulance Service NHS Trust,03/05/2017,Vehicles,Capital,S & B Commercials Plc,328901,36855.6
DOH,London Ambulance Service NHS Trust,03/05/2017,Vehicles,Capital,S & B Commercials Plc,328902,36855.6
DOH,London Ambulance Service NHS Trust,17/05/2017,Data Network Rental,Networks,Vodafone Corporate Limited,328909,34836.2
DOH,London Ambulance Service NHS Trust,03/05/2017,Technical Support - Contract,Capita Contract,Capita Secure Information Solutions Ltd,329046,57183.08
DOH,London Ambulance Service NHS Trust,10/05/2017,Private Ambulance Hire,Ops Central - Private Amb,Srcl Ltd,329048,45594.06
DOH,London Ambulance Service NHS Trust,03/05/2017,Blanket Purchase,Supply & Material Management,Med-I-Pant Uk Ltd,329117,59400
DOH,London Ambulance Service NHS Trust,03/05/2017,Vehicles,Capital,S & B Commercials Plc,329144,36855.6
DOH,London Ambulance Service NHS Trust,10/05/2017,Vehicles,Capital,S & B Commercials Plc,329530,36855.6
DOH,London Ambulance Service NHS Trust,10/05/2017,Vehicles,Capital,S & B Commercials Plc,329531,36855.6
DOH,London Ambulance Service NHS Trust,10/05/2017,Vehicles,Capital,S & B Commercials Plc,329532,36855.6
DOH,London Ambulance Service NHS Trust,10/05/2017,Vehicles,Capital,S & B Commercials Plc,329533,36855.6
DOH,London Ambulance Service NHS Trust,10/05/2017,Vehicles,Capital,S & B Commercials Plc,329534,36855.6
DOH,London Ambulance Service NHS Trust,10/05/2017,Ambulance Equipment,Capital,Stryker Uk Ltd,329542,43634.88
DOH,London Ambulance Service NHS Trust,10/05/2017,Ambulance Equipment,Capital,Stryker Uk Ltd,329543,43634.88
DOH,London Ambulance Service NHS Trust,10/05/2017,Electricity,Estate Management,British Gas,329547,71423.45
DOH,London Ambulance Service NHS Trust,17/05/2017,Lease Costs For Ops Vehicles,Frontline Fru Leases,Siemens Financial Services Ltd,329565,77314.11
DOH,London Ambulance Service NHS Trust,24/05/2017,Lease Costs For Ops Vehicles,Frontline Fru Leases,Siemens Financial Services Ltd,329566,42448.87
DOH,London Ambulance Service NHS Trust,10/05/2017,Occupational Health Fees,Staff Support,Health Management Limited,329617,91099.33
DOH,London Ambulance Service NHS Trust,10/05/2017,Occupational Health Fees,Staff Support,Health Management Limited,329618,82502.59
DOH,London Ambulance Service NHS Trust,10/05/2017,Tyres,Fleet Support Services,Ats Euromaster Ltd,329642,52406.82
DOH,London Ambulance Service NHS Trust,10/05/2017,Tyres,Fleet Support Services,Ats Euromaster Ltd,329645,41837.98
DOH,London Ambulance Service NHS Trust,10/05/2017,Vehicles,Capital,S & B Commercials Plc,329670,36855.6
DOH,London Ambulance Service NHS Trust,10/05/2017,Vehicles,Capital,S & B Commercials Plc,329671,36855.6
DOH,London Ambulance Service NHS Trust,10/05/2017,Vehicles,Capital,S & B Commercials Plc,329672,36855.6
DOH,London Ambulance Service NHS Trust,10/05/2017,Vehicles,Capital,S & B Commercials Plc,329673,36855.6
DOH,London Ambulance Service NHS Trust,10/05/2017,Vehicles,Capital,S & B Commercials Plc,329674,36855.6
DOH,London Ambulance Service NHS Trust,10/05/2017,Ambulance Equipment,Capital,Stryker Uk Ltd,329681,43634.88
DOH,London Ambulance Service NHS Trust,10/05/2017,Ambulance Equipment,Capital,Stryker Uk Ltd,329682,43634.88
DOH,London Ambulance Service NHS Trust,10/05/2017,Ambulance Equipment,Capital,Stryker Uk Ltd,329683,43634.88
DOH,London Ambulance Service NHS Trust,10/05/2017,Ambulance Equipment,Capital,Stryker Uk Ltd,329684,43634.88
DOH,London Ambulance Service NHS Trust,10/05/2017,Private Ambulance Hire,Ops Central - Private Amb,Srcl Ltd,329757,48363.34
DOH,London Ambulance Service NHS Trust,10/05/2017,Contract Labour,Vehicle Resouce Centre,Churchill Contract Services Ltd,329785,26319.74
DOH,London Ambulance Service NHS Trust,10/05/2017,Vehicles,Capital,S & B Commercials Plc,329793,36855.6
DOH,London Ambulance Service NHS Trust,10/05/2017,Vehicles,Capital,S & B Commercials Plc,329794,36855.6
DOH,London Ambulance Service NHS Trust,10/05/2017,Vehicles,Capital,S & B Commercials Plc,329795,36855.6
DOH,London Ambulance Service NHS Trust,10/05/2017,Vehicles,Capital,S & B Commercials Plc,329796,36855.6
DOH,London Ambulance Service NHS Trust,10/05/2017,Contract Labour,Vehicle Resouce Centre,Churchill Contract Services Ltd,329867,26705.66
DOH,London Ambulance Service NHS Trust,24/05/2017,Private Ambulance Hire,Ops Central - Private Amb,Srcl Ltd,330135,48160.7
DOH,London Ambulance Service NHS Trust,10/05/2017,Private Ambulance Hire,Ops Central - Private Amb,Srcl Ltd,330136,37074.87
DOH,London Ambulance Service NHS Trust,17/05/2017,Drugs,Paramedic 2 Study,Univeristy Of Warwick,330288,56214.8
DOH,London Ambulance Service NHS Trust,17/05/2017,Vehicles,Capital,S & B Commercials Plc,330402,36855.6
DOH,London Ambulance Service NHS Trust,17/05/2017,Pts Control Maintenance,Systems,3tc Software Ltd,330408,72098.65
DOH,London Ambulance Service NHS Trust,17/05/2017,Data Network Rental,Networks,Vodafone Corporate Limited,330417,100854.64
DOH,London Ambulance Service NHS Trust,17/05/2017,Private Ambulance Hire,Ops Central - Private Amb,Medical Services Ltd,330554,50667.91
DOH,London Ambulance Service NHS Trust,24/05/2017,Vehicle Recovery,Fleet Support Services,The Mansfield Group,330562,53515.7
DOH,London Ambulance Service NHS Trust,17/05/2017,Lease Costs For Ops Vehicles,Non Emergency Transport,Tp Leasing Ltd,330571,74144.03
DOH,London Ambulance Service NHS Trust,17/05/2017,Lease Costs For Ops Vehicles,Non Emergency Transport,Tp Leasing Ltd,330572,42368.02
DOH,London Ambulance Service NHS Trust,17/05/2017,Professional Fees,Qip Medicines Management,Bolt Partners Ltd,330573,47755.2
DOH,London Ambulance Service NHS Trust,24/05/2017,Buildings,Capital,Coniston Limited,330667,30000
DOH,London Ambulance Service NHS Trust,17/05/2017,Cleaning Of Premises,Estate Management,Lakethorne Ltd,330752,87409.13
DOH,London Ambulance Service NHS Trust,24/05/2017,Technical Support - Contract,Capita Contract,Capita Secure Information Solutions Ltd,330815,57183.08
DOH,London Ambulance Service NHS Trust,24/05/2017,Medical & Surgical Items,South Area Managed Stores,Physio-Control Uk Sales Ltd,330956,25164
DOH,London Ambulance Service NHS Trust,17/05/2017,Vehicles,Capital,S & B Commercials Plc,330993,36855.6
DOH,London Ambulance Service NHS Trust,17/05/2017,Vehicles,Capital,S & B Commercials Plc,330994,36855.6
DOH,London Ambulance Service NHS Trust,17/05/2017,Vehicles,Capital,S & B Commercials Plc,330995,36855.6
DOH,London Ambulance Service NHS Trust,17/05/2017,Vehicles,Capital,S & B Commercials Plc,330996,36855.6
DOH,London Ambulance Service NHS Trust,17/05/2017,Vehicles,Capital,S & B Commercials Plc,330997,36855.6
DOH,London Ambulance Service NHS Trust,17/05/2017,Vehicles,Capital,S & B Commercials Plc,330998,36855.6
DOH,London Ambulance Service NHS Trust,17/05/2017,Vehicles,Capital,S & B Commercials Plc,330999,36855.6
DOH,London Ambulance Service NHS Trust,17/05/2017,Vehicles,Capital,S & B Commercials Plc,331000,36855.6
DOH,London Ambulance Service NHS Trust,17/05/2017,Vehicles,Capital,S & B Commercials Plc,331001,36855.6
DOH,London Ambulance Service NHS Trust,17/05/2017,Vehicles,Capital,S & B Commercials Plc,331002,36855.6
DOH,London Ambulance Service NHS Trust,17/05/2017,Vehicles,Capital,S & B Commercials Plc,331003,36855.6
DOH,London Ambulance Service NHS Trust,17/05/2017,Vehicles,Capital,S & B Commercials Plc,331004,36855.6
DOH,London Ambulance Service NHS Trust,17/05/2017,Vehicles,Capital,S & B Commercials Plc,331005,36855.6
DOH,London Ambulance Service NHS Trust,17/05/2017,Vehicles,Capital,S & B Commercials Plc,331006,36855.6
DOH,London Ambulance Service NHS Trust,17/05/2017,Vehicles,Capital,S & B Commercials Plc,331007,36855.6
DOH,London Ambulance Service NHS Trust,17/05/2017,Vehicles,Capital,S & B Commercials Plc,331008,36855.6
DOH,London Ambulance Service NHS Trust,17/05/2017,Vehicles,Capital,S & B Commercials Plc,331009,36855.6
DOH,London Ambulance Service NHS Trust,17/05/2017,Vehicles,Capital,S & B Commercials Plc,331010,36855.6
DOH,London Ambulance Service NHS Trust,17/05/2017,Vehicles,Capital,S & B Commercials Plc,331011,36855.6
DOH,London Ambulance Service NHS Trust,17/05/2017,Vehicles,Capital,S & B Commercials Plc,331012,36855.6
DOH,London Ambulance Service NHS Trust,17/05/2017,Vehicles,Capital,S & B Commercials Plc,331013,36855.6
DOH,London Ambulance Service NHS Trust,17/05/2017,Ambulance Equipment,Capital,Stryker Uk Ltd,331028,43634.88
DOH,London Ambulance Service NHS Trust,17/05/2017,Computer Hardware,Capital,Alternative Networks Ltd,331235,368174.49
DOH,London Ambulance Service NHS Trust,24/05/2017,Buildings,Capital,Moolands Ltd,331401,42516.73
DOH,London Ambulance Service NHS Trust,24/05/2017,Contract Labour,Vehicle Resouce Centre,Churchill Contract Services Ltd,331582,72765.38
DOH,London Ambulance Service NHS Trust,24/05/2017,Contract Labour,Vehicle Resouce Centre,Churchill Contract Services Ltd,331583,75748.76
DOH,London Ambulance Service NHS Trust,24/05/2017,Vehicles,Capital,S & B Commercials Plc,331596,36855.6
DOH,London Ambulance Service NHS Trust,24/05/2017,Cleaning Of Vehicles Makeready,Corporate Logistics,Interserve Hospital Services,331769,258074.86
DOH,London Ambulance Service NHS Trust,24/05/2017,Vehicles,Capital,S & B Commercials Plc,331816,36855.6
DOH,London Ambulance Service NHS Trust,24/05/2017,Vehicles,Capital,S & B Commercials Plc,331817,36855.6
DOH,London Ambulance Service NHS Trust,24/05/2017,Vehicles,Capital,S & B Commercials Plc,331818,36855.6
DOH,London Ambulance Service NHS Trust,24/05/2017,Vehicles,Capital,S & B Commercials Plc,331819,36855.6
DOH,London Ambulance Service NHS Trust,24/05/2017,Vehicles,Capital,S & B Commercials Plc,331820,36855.6
DOH,London Ambulance Service NHS Trust,24/05/2017,Vehicles,Capital,S & B Commercials Plc,331821,36855.6
DOH,London Ambulance Service NHS Trust,24/05/2017,Vehicles,Capital,S & B Commercials Plc,331822,36855.6
DOH,London Ambulance Service NHS Trust,24/05/2017,Vehicles,Capital,S & B Commercials Plc,331823,36855.6
DOH,London Ambulance Service NHS Trust,24/05/2017,Vehicles,Capital,S & B Commercials Plc,331824,36855.6
DOH,London Ambulance Service NHS Trust,24/05/2017,Vehicles,Capital,S & B Commercials Plc,331825,36855.6
DOH,London Ambulance Service NHS Trust,24/05/2017,Vehicles,Capital,S & B Commercials Plc,331826,36855.6
DOH,London Ambulance Service NHS Trust,24/05/2017,Vehicles,Capital,S & B Commercials Plc,331827,36855.6
DOH,London Ambulance Service NHS Trust,24/05/2017,Vehicles,Capital,S & B Commercials Plc,331828,36855.6
DOH,London Ambulance Service NHS Trust,24/05/2017,Vehicles,Capital,S & B Commercials Plc,331829,36855.6
DOH,London Ambulance Service NHS Trust,24/05/2017,Vehicles,Capital,S & B Commercials Plc,331830,36855.6
DOH,London Ambulance Service NHS Trust,24/05/2017,Accident Repairs,Fulham (F2) Station,Jubilee Coachworks Limited,331852,35294.45
DOH,London Ambulance Service NHS Trust,24/05/2017,Rent,Estate Management,Dron & Wright,332019,68725
DOH,London Ambulance Service NHS Trust,24/05/2017,Service Charges,Estate Management,Dron & Wright,332019,22871.88
DOH,London Ambulance Service NHS Trust,24/05/2017,Agency Nurses,111 Operations,Hays Specialist Recruitment Ltd,332092,27995.36
DOH,London Ambulance Service NHS Trust,24/05/2017,Agency Nurses,111 Operations,Hays Specialist Recruitment Ltd,332093,28255.13
DOH,London Ambulance Service NHS Trust,02/05/2017,Ensign Insurance Debtor,Control Accounts,QBE International Insurance T/A Ensign,43749,"270,690.83"
DOH,London Ambulance Service NHS Trust,26/05/2017,Medical Gas,Director Of Ops,British Oxygen,44348,"121,968.22"
DOH,London Ambulance Service NHS Trust,15/05/2017,Fuel,Director Of Ops,BP Oil,44036,"197,058.22"
DOH,London Ambulance Service NHS Trust,22/05/2017,Child Care Arrangements,Payroll,Computerserve Vouchers,44108,"32,731.71"
DOH,London Ambulance Service NHS Trust,25/05/2017,CNST Contributions,Legal Services,NHSLA,44247,278525
DOH,London Ambulance Service NHS Trust,25/05/2017,Liability to 3rd Party Scheme,Legal Services,NHSLA,44247,35774.1
DOH,London Ambulance Service NHS Trust,25/05/2017,Property Expenses Scheme,Legal Services,NHSLA,44247,889.6
